fUSD/lending_fUSD_20250109
["ID","MTS","AMOUNT","RATE_DAILY","PERIOD"]
[348206510,1736391039205,-500.0,9.997e-05,2]
[348206512,1736391039215,-583.33,9.997e-05,2]
[348206514,1736391039224,-500.0,9.997e-05,2]
[348206516,1736391039234,-500.0,9.997e-05,2]
[348206518,1736391039243,-501.5329746,9.997e-05,2]
[348206520,1736391039252,-500.0,9.997e-05,2]
[348206522,1736391039262,-500.0,9.997e-05,2]
[348206524,1736391039272,-500.0,9.997e-05,2]
[348206526,1736391039281,-500.0,9.997e-05,2]
[348206528,1736391039291,-1207.39,9.997e-05,2]
[348206530,1736391039300,-500.0,9.997e-05,2]
[348206532,1736391039309,-500.0,9.997e-05,2]
[348206534,1736391039320,-500.0,9.997e-05,2]
[348206536,1736391039330,-500.0,9.997e-05,2]
[348206538,1736391039339,-500.0,9.997e-05,2]
[348206540,1736391039349,-500.0,9.997e-05,2]
[348206542,1736391039359,-1041.47,9.997e-05,2]
[348206544,1736391039369,-500.0,9.997e-05,2]
[348206546,1736391039379,-500.0,9.997e-05,2]
[348206548,1736391039389,-500.0,9.997e-05,2]
[348206550,1736391039398,-593.91740597,9.997e-05,2]
[348206551,1736391039408,-500.0,9.997e-05,2]
[348206553,1736391039416,-502.91970156,9.997e-05,2]
[348206555,1736391039426,-566.21,9.997e-05,2]
[348206557,1736391039435,-3044.14,9.997e-05,2]
[348206558,1736391039444,-500.0,9.997e-05,2]
[348206560,1736391039454,-500.0,9.997e-05,2]
[348206562,1736391039463,-503.25056692,9.997e-05,2]
[348206564,1736391039473,-500.0,9.997e-05,2]
[348206566,1736391039482,-500.0,9.997e-05,2]
[348206568,1736391039492,-503.53542871,9.997e-05,2]
[348206570,1736391039501,-500.0,9.997e-05,2]
[348206572,1736391039511,-500.0,9.997e-05,2]
[348206574,1736391039520,-501.92403733,9.997e-05,2]
[348206576,1736391039530,-500.0,9.997e-05,2]
[348206578,1736391039539,-500.0,9.997e-05,2]
[348206580,1736391039549,-500.0,9.997e-05,2]
[348206582,1736391039559,-500.0,9.997e-05,2]
[348206584,1736391039569,-502.06430385,9.997e-05,2]
[348206586,1736391039578,-500.0,9.997e-05,2]
[348206588,1736391039588,-503.13336807,9.997e-05,2]
[348206590,1736391039598,-502.8096191,9.997e-05,2]
[348206592,1736391039607,-500.0,9.997e-05,2]
[348206594,1736391039616,-445.80520274,9.997e-05,2]
[348206596,1736391039626,-500.0,9.997e-05,2]
[348206598,1736391039638,-502.03508118,9.997e-05,2]
[348206600,1736391039648,-501.17555334,9.997e-05,2]
[348206602,1736391039657,-500.0,9.997e-05,2]
[348206603,1736391039669,-500.0,9.997e-05,2]
[348206605,1736391039679,-505.1021206,9.997e-05,2]
[348206607,1736391039688,-500.0,9.997e-05,2]
[348206609,1736391039698,-503.3278769,9.997e-05,2]
[348206611,1736391039709,-500.0,9.997e-05,2]
[348206613,1736391039719,-500.0,9.997e-05,2]
[348206616,1736391039729,-500.0,9.997e-05,2]
[348206617,1736391039739,-500.0,9.997e-05,2]
[348206619,1736391039749,-503.45979706,9.997e-05,2]
[348206621,1736391039759,-500.75982875,9.997e-05,2]
[348206624,1736391039769,-500.0,9.997e-05,2]
[348206625,1736391039779,-500.0,9.997e-05,2]
[348206627,1736391039788,-500.0,9.997e-05,2]
[348206629,1736391039798,-503.98197125,9.997e-05,2]
[348206631,1736391039807,-506.90539749,9.997e-05,2]
[348206633,1736391039817,-308.69577508,9.997e-05,2]
[348206635,1736391039828,-500.0,9.997e-05,2]
[348206637,1736391039837,-178.47413262,9.997e-05,2]
[348206639,1736391039847,-500.0,9.997e-05,2]
[348206642,1736391039857,-500.0,9.997e-05,2]
[348206643,1736391039868,-414.44969735,9.997e-05,2]
[348206645,1736391039878,-500.0,9.997e-05,2]
[348206648,1736391039889,-500.0,9.997e-05,2]
[348206649,1736391039900,-500.0,9.997e-05,2]
[348206651,1736391039909,-505.18039249,9.997e-05,2]
[348206653,1736391039919,-503.59347331,9.997e-05,2]
[348206655,1736391039928,-500.0,9.997e-05,2]
[348206657,1736391039938,-500.0,9.997e-05,2]
[348206659,1736391039948,-500.0,9.997e-05,2]
[348206661,1736391039959,-500.0,9.997e-05,2]
[348206663,1736391039971,-500.97289918,9.997e-05,2]
[348206665,1736391039981,-504.20795198,9.997e-05,2]
[348206668,1736391039994,-507.39221955,9.997e-05,2]
[348206670,1736391040005,-500.0,9.997e-05,2]
[348206672,1736391040015,-501.94249037,9.997e-05,2]
[348206674,1736391040025,-500.0,9.997e-05,2]
[348206676,1736391040034,-503.606729,9.997e-05,2]
[348206678,1736391040044,-500.0,9.997e-05,2]
[348206680,1736391040055,-545.16,9.997e-05,2]
[348206682,1736391040064,-500.0,9.997e-05,2]
[348206684,1736391040075,-500.0,9.997e-05,2]
[348206686,1736391040085,-501.97332824,9.997e-05,2]
[348206688,1736391040095,-500.0,9.997e-05,2]
[348206690,1736391040105,-717.41,9.997e-05,2]
[348206692,1736391040115,-500.0,9.997e-05,2]
[348206694,1736391040125,-500.0,9.997e-05,2]
[348206696,1736391040135,-502.54686632,9.997e-05,2]
[348206698,1736391040144,-504.38737635,9.997e-05,2]
[348206700,1736391040153,-500.0,9.997e-05,2]
[348206702,1736391040163,-500.0,9.997e-05,2]
[348206704,1736391040172,-1933.11,9.997e-05,2]
[348206706,1736391040182,-502.20761791,9.997e-05,2]
[348206708,1736391040192,-502.73443163,9.997e-05,2]
[348206710,1736391040202,-500.0,9.997e-05,2]
[348206712,1736391040211,-500.0,9.997e-05,2]
[348206714,1736391040221,-504.47315747,9.997e-05,2]
[348206716,1736391040231,-507.08584747,9.997e-05,2]
[348206718,1736391040241,-583.10214431,9.997e-05,2]
[348206720,1736391040251,-1249.27,9.997e-05,2]
[348206722,1736391040261,-500.0,9.997e-05,2]
[348206724,1736391040270,-500.0,9.997e-05,2]
[348206727,1736391040280,-500.0,9.997e-05,2]
[348206729,1736391040289,-500.0,9.997e-05,2]
[348206731,1736391040299,-500.0,9.997e-05,2]
[348206733,1736391040308,-500.0,9.997e-05,2]
[348206735,1736391040318,-500.0,9.997e-05,2]
[348206737,1736391040332,-551.1140989,9.997e-05,2]
[348206739,1736391040342,-500.0,9.997e-05,2]
[348206741,1736391040352,-500.0,9.997e-05,2]
[348206743,1736391040361,-500.0,9.997e-05,2]
[348206745,1736391040371,-505.12148582,9.997e-05,2]
[348206747,1736391040380,-500.0,9.997e-05,2]
[348206749,1736391040391,-2301.04,9.997e-05,2]
[348206751,1736391040400,-504.2068801,9.997e-05,2]
[348206753,1736391040410,-501.78865138,9.997e-05,2]
[348206756,1736391040428,-504.55102955,9.997e-05,2]
[348206758,1736391040439,-500.0,9.997e-05,2]
[348206760,1736391040450,-504.51935924,9.997e-05,2]
[348206762,1736391040460,-500.0,9.997e-05,2]
[348206764,1736391040470,-500.0,9.997e-05,2]
[348206766,1736391040480,-518.43702026,9.997e-05,2]
[348206768,1736391040490,-433.0439191,9.997e-05,2]
[348206770,1736391040500,-502.52209572,9.997e-05,2]
[348206772,1736391040509,-500.0,9.997e-05,2]
[348206773,1736391040520,-504.34836133,9.997e-05,2]
[348206775,1736391040531,-549.45,9.997e-05,2]
[348206777,1736391040541,-500.0,9.997e-05,2]
[348206779,1736391040551,-500.0,9.997e-05,2]
[348206781,1736391040560,-500.0,9.997e-05,2]
[348206783,1736391040570,-500.0,9.997e-05,2]
[348206785,1736391040580,-503.2886451,9.997e-05,2]
[348206787,1736391040589,-500.0,9.997e-05,2]
[348206790,1736391040599,-501.59536923,9.997e-05,2]
[348206792,1736391040609,-503.67535105,9.997e-05,2]
[348206794,1736391040619,-504.60907441,9.997e-05,2]
[348206796,1736391040628,-500.0,9.997e-05,2]
[348206797,1736391040638,-504.80571382,9.997e-05,2]
[348206799,1736391040648,-504.36999896,9.997e-05,2]
[348206801,1736391040658,-503.04899765,9.997e-05,2]
[348206803,1736391040668,-500.0,9.997e-05,2]
[348206805,1736391040678,-500.0,9.997e-05,2]
[348206807,1736391040688,-502.73845964,9.997e-05,2]
[348206809,1736391040697,-502.84837389,9.997e-05,2]
[348206811,1736391040707,-500.0,9.997e-05,2]
[348206814,1736391040717,-500.0,9.997e-05,2]
[348206816,1736391040727,-1105.18,9.997e-05,2]
[348206818,1736391040736,-504.0589438,9.997e-05,2]
[348206820,1736391040746,-500.0,9.997e-05,2]
[348206822,1736391040755,-1691.78,9.997e-05,2]
[348206824,1736391040766,-504.01278133,9.997e-05,2]
[348206826,1736391040775,-500.0,9.997e-05,2]
[348206828,1736391040785,-500.0,9.997e-05,2]
[348206830,1736391040795,-500.0,9.997e-05,2]
[348206832,1736391040804,-526.589905,9.997e-05,2]
[348206833,1736391040813,-500.0,9.997e-05,2]
[348206835,1736391040824,-506.53510723,9.997e-05,2]
[348206838,1736391040833,-500.0,9.997e-05,2]
[348206840,1736391040843,-682.17,9.997e-05,2]
[348206842,1736391040853,-507.35,9.997e-05,2]
[348206844,1736391040863,-500.0,9.997e-05,2]
[348206846,1736391040873,-500.0,9.997e-05,2]
[348206848,1736391040884,-506.05278059,9.997e-05,2]
[348206850,1736391040897,-527.85001845,9.997e-05,2]
[348206852,1736391040907,-500.0,9.997e-05,2]
[348206854,1736391040917,-503.56314217,9.997e-05,2]
[348206856,1736391040927,-1703.58,9.997e-05,2]
[348206858,1736391040936,-501.1031797,9.997e-05,2]
[348206860,1736391040947,-476.45612439,9.997e-05,2]
[348206861,1736391040956,-503.26065331,9.997e-05,2]
[348206864,1736391040967,-503.66710165,9.997e-05,2]
[348206866,1736391040977,-500.0,9.997e-05,2]
[348206868,1736391040987,-500.0,9.997e-05,2]
[348206869,1736391040996,-500.0,9.997e-05,2]
[348206871,1736391041005,-500.0,9.997e-05,2]
[348206873,1736391041015,-500.0,9.997e-05,2]
[348206875,1736391041025,-501.28719864,9.997e-05,2]
[348206877,1736391041034,-500.0,9.997e-05,2]
[348206879,1736391041043,-500.0,9.997e-05,2]
[348206881,1736391041053,-504.14855994,9.997e-05,2]
[348206883,1736391041062,-500.98061561,9.997e-05,2]
[348206885,1736391041073,-500.0,9.997e-05,2]
[348206888,1736391041083,-758.63,9.997e-05,2]
[348206890,1736391041093,-500.0,9.997e-05,2]
[348206892,1736391041103,-623.71,9.997e-05,2]
[348206894,1736391041112,-500.0,9.997e-05,2]
[348206895,1736391041122,-500.0,9.997e-05,2]
[348206897,1736391041131,-500.0,9.997e-05,2]
[348206900,1736391041142,-385.47315604,9.997e-05,2]
[348206901,1736391041152,-501.85316229,9.997e-05,2]
[348206903,1736391041162,-500.0,9.997e-05,2]
[348206906,1736391041171,-12985.684323,9.997e-05,2]
[348206907,1736391041180,-505.49875073,9.997e-05,2]
[348206910,1736391041190,-500.0,9.997e-05,2]
[348206912,1736391041200,-505.18832106,9.997e-05,2]
[348206914,1736391041209,-504.54546808,9.997e-05,2]
[348206916,1736391041218,-500.0,9.997e-05,2]
[348206918,1736391041227,-156.453334,9.997e-05,2]
[348206920,1736391041237,-504.01781334,9.997e-05,2]
[348206922,1736391041247,-157.162446,9.997e-05,2]
[348206924,1736391041258,-500.0,9.997e-05,2]
[348206926,1736391041268,-500.0,9.997e-05,2]
[348206928,1736391041278,-500.0,9.997e-05,2]
[348206930,1736391041287,-500.0,9.997e-05,2]
[348206932,1736391041297,-500.99187282,9.997e-05,2]
[348206934,1736391041307,-493.0792018,9.997e-05,2]
[348206936,1736391041317,-500.0,9.997e-05,2]
[348206938,1736391041327,-500.0,9.997e-05,2]
[348206940,1736391041336,-503.53333969,9.997e-05,2]
[348206942,1736391041346,-602.49789625,9.997e-05,2]
[348206944,1736391041355,-503.22923189,9.997e-05,2]
[348206946,1736391041365,-525.96928236,9.997e-05,2]
[348206948,1736391041374,-502.9564839,9.997e-05,2]
[348206950,1736391041383,-502.16308824,9.997e-05,2]
[348206952,1736391041393,-500.0,9.997e-05,2]
[348206954,1736391041403,-501.69169403,9.997e-05,2]
[348206956,1736391041413,-501.99336724,9.997e-05,2]
[348206958,1736391041423,-503.31675182,9.997e-05,2]
[348206960,1736391041432,-501.01080818,9.997e-05,2]
[348206961,1736391041442,-500.0,9.997e-05,2]
[348206962,1736391041452,-501.32078582,9.997e-05,2]
[348206963,1736391041462,-500.0,9.997e-05,2]
[348206964,1736391041471,-500.0,9.997e-05,2]
[348206965,1736391041481,-1254.93,9.997e-05,2]
[348206966,1736391041491,-501.22825599,9.997e-05,2]
[348206967,1736391041501,-500.0,9.997e-05,2]
[348206968,1736391041511,-500.0,9.997e-05,2]
[348206969,1736391041520,-501.31978582,9.997e-05,2]
[348206970,1736391041530,-14620.606743,9.997e-05,2]
[348206972,1736391041539,-500.0,9.997e-05,2]
[348206974,1736391041549,-506.90531012,9.997e-05,2]
[348206976,1736391041559,-500.0,9.997e-05,2]
[348206978,1736391041568,-1657.62,9.997e-05,2]
[348206980,1736391041579,-740.37,9.997e-05,2]
[348206982,1736391041588,-505.41338267,9.997e-05,2]
[348206984,1736391041598,-2481.47,9.997e-05,2]
[348206986,1736391041607,-500.0,9.997e-05,2]
[348206988,1736391041616,-500.0,9.997e-05,2]
[348206990,1736391041626,-502.35174852,9.997e-05,2]
[348206992,1736391041636,-500.0,9.997e-05,2]
[348206994,1736391041646,-506.48918803,9.997e-05,2]
[348206996,1736391041656,-501.58407469,9.997e-05,2]
[348206998,1736391041668,-500.0,9.997e-05,2]
[348207000,1736391041678,-337.30517856,9.997e-05,2]
[348207002,1736391041688,-501.03422384,9.997e-05,2]
[348207004,1736391041698,-501.62117404,9.997e-05,2]
[348207006,1736391041707,-500.0,9.997e-05,2]
[348207008,1736391041717,-692.75,9.997e-05,2]
[348207010,1736391041726,-500.0,9.997e-05,2]
[348207012,1736391041735,-502.81687659,9.997e-05,2]
[348207014,1736391041745,-500.0,9.997e-05,2]
[348207016,1736391041754,-589.89399838,9.997e-05,2]
[348207018,1736391041764,-530.58961528,9.997e-05,2]
[348207020,1736391041773,-500.0,9.997e-05,2]
[348207038,1736391042015,-502.41004073,9.997e-05,2]
[348207039,1736391042026,-502.70753947,9.997e-05,2]
[348207040,1736391042035,-1709.51,9.997e-05,2]
[348207041,1736391042045,-500.0,9.997e-05,2]
[348207042,1736391042054,-504.70464923,9.997e-05,2]
[348207043,1736391042063,-500.0,9.997e-05,2]
[348207044,1736391042072,-500.0,9.997e-05,2]
[348207045,1736391042082,-504.46564412,9.997e-05,2]
[348207046,1736391042091,-500.0,9.997e-05,2]
[348207047,1736391042101,-500.0,9.997e-05,2]
[348207048,1736391042110,-582.01,9.997e-05,2]
[348207049,1736391042120,-500.0,9.997e-05,2]
[348207050,1736391042131,-500.0,9.997e-05,2]
[348207051,1736391042140,-500.0,9.997e-05,2]
[348207052,1736391042151,-500.0,9.997e-05,2]
[348207053,1736391042160,-447.6119647,9.997e-05,2]
[348207054,1736391042169,-1868.59,9.997e-05,2]
[348207055,1736391042178,-500.0,9.997e-05,2]
[348207056,1736391042187,-503.95659986,9.998e-05,2]
[348207057,1736391042196,-500.0,9.998e-05,2]
[348207058,1736391042206,-500.0,9.998e-05,2]
[348207059,1736391042215,-500.8680478,9.998e-05,2]
[348207060,1736391042224,-500.0,9.998e-05,2]
[348207061,1736391042234,-500.0,9.998e-05,2]
[348207062,1736391042243,-500.0,9.998e-05,2]
[348207063,1736391042252,-506.7827541,9.998e-05,2]
[348207064,1736391042262,-500.0,9.998e-05,2]
[348207065,1736391042271,-500.0,9.998e-05,2]
[348207066,1736391042281,-500.0,9.998e-05,2]
[348207067,1736391042290,-500.0,9.998e-05,2]
[348207068,1736391042299,-500.0,9.998e-05,2]
[348207069,1736391042309,-502.42138833,9.998e-05,2]
[348207070,1736391042319,-504.97002489,9.998e-05,2]
[348207071,1736391042329,-500.0,9.998e-05,2]
[348207072,1736391042339,-500.0,9.998e-05,2]
[348207073,1736391042348,-500.0,9.998e-05,2]
[348207074,1736391042358,-506.09699707,9.998e-05,2]
[348207075,1736391042367,-500.0,9.998e-05,2]
[348207077,1736391042377,-500.0,9.998e-05,2]
[348207079,1736391042386,-504.74967451,9.998e-05,2]
[348207081,1736391042396,-500.0,9.998e-05,2]
[348207083,1736391042405,-500.0,9.998e-05,2]
[348207085,1736391042414,-500.0,9.998e-05,2]
[348207087,1736391042423,-500.0,9.998e-05,2]
[348207089,1736391042433,-500.0,9.998e-05,2]
[348207091,1736391042443,-500.0,9.998e-05,2]
[348207093,1736391042453,-500.0,9.998e-05,2]
[348207095,1736391042462,-503.31562431,9.998e-05,2]
[348207097,1736391042472,-500.0,9.998e-05,2]
[348207099,1736391042481,-500.0,9.998e-05,2]
[348207101,1736391042490,-503.12104571,9.998e-05,2]
[348207103,1736391042500,-500.0,9.998e-05,2]
[348207105,1736391042509,-500.0,9.998e-05,2]
[348207107,1736391042519,-500.41546366,9.998e-05,2]
[348207109,1736391042528,-500.0,9.998e-05,2]
[348207111,1736391042537,-500.0,9.998e-05,2]
[348207114,1736391042547,-500.0,9.998e-05,2]
[348207116,1736391042556,-500.0,9.998e-05,2]
[348207118,1736391042566,-500.0,9.998e-05,2]
[348207119,1736391042576,-500.0,9.998e-05,2]
[348207121,1736391042586,-502.88659175,9.998e-05,2]
[348207123,1736391042595,-500.0,9.998e-05,2]
[348207125,1736391042605,-500.0,9.998e-05,2]
[348207126,1736391042614,-500.0,9.998e-05,2]
[348207128,1736391042623,-502.89239099,9.998e-05,2]
[348207130,1736391042634,-500.0,9.998e-05,2]
[348207132,1736391042644,-500.0,9.998e-05,2]
[348207134,1736391042653,-502.79811812,9.998e-05,2]
[348207135,1736391042662,-500.0,9.998e-05,2]
[348207137,1736391042672,-500.0,9.998e-05,2]
[348207139,1736391042681,-500.0,9.998e-05,2]
[348207141,1736391042691,-500.0,9.998e-05,2]
[348207143,1736391042700,-500.0,9.998e-05,2]
[348207144,1736391042710,-504.57725706,9.998e-05,2]
[348207146,1736391042719,-500.0,9.998e-05,2]
[348207148,1736391042729,-500.0,9.998e-05,2]
[348207150,1736391042738,-500.0,9.998e-05,2]
[348207152,1736391042747,-500.0,9.998e-05,2]
[348207154,1736391042757,-292.82475809,9.998e-05,2]
[348207155,1736391042766,-500.0,9.998e-05,2]
[348207157,1736391042775,-390.26731615,9.998e-05,2]
[348207159,1736391042784,-500.0,9.998e-05,2]
[348207161,1736391042794,-500.0,9.998e-05,2]
[348207162,1736391042803,-500.0,9.998e-05,2]
[348207164,1736391042813,-500.0,9.998e-05,2]
[348207166,1736391042823,-500.0,9.998e-05,2]
[348207168,1736391042833,-500.0,9.998e-05,2]
[348207170,1736391042843,-220.62720128,9.998e-05,2]
[348207172,1736391042852,-500.0,9.998e-05,2]
[348207174,1736391042862,-500.0,9.998e-05,2]
[348207175,1736391042871,-500.0,9.998e-05,2]
[348207177,1736391042881,-504.37084967,9.998e-05,2]
[348207179,1736391042893,-533.22,9.998e-05,2]
[348207181,1736391042902,-500.0,9.998e-05,2]
[348207183,1736391042911,-503.38542342,9.998e-05,2]
[348207184,1736391042921,-500.0,9.998e-05,2]
[348207186,1736391042931,-500.0,9.998e-05,2]
[348207188,1736391042940,-502.03303819,9.998e-05,2]
[348207190,1736391042949,-492.43788004,9.998e-05,2]
[348207192,1736391042958,-601.27145143,9.998e-05,2]
[348207194,1736391042969,-500.0,9.998e-05,2]
[348207196,1736391042979,-500.0,9.998e-05,2]
[348207198,1736391042988,-500.0,9.998e-05,2]
[348207199,1736391042998,-500.0,9.998e-05,2]
[348207201,1736391043007,-500.0,9.998e-05,2]
[348207203,1736391043015,-500.0,9.998e-05,2]
[348207205,1736391043024,-500.0,9.998e-05,2]
[348207206,1736391043033,-500.0,9.998e-05,2]
[348207208,1736391043042,-500.0,9.998e-05,2]
[348207210,1736391043051,-503.12976115,9.998e-05,2]
[348207212,1736391043060,-500.0,9.998e-05,2]
[348207213,1736391043070,-579.74711105,9.998e-05,2]
[348207215,1736391043079,-500.0,9.998e-05,2]
[348207217,1736391043088,-502.48593069,9.998e-05,2]
[348207219,1736391043097,-500.0,9.998e-05,2]
[348207220,1736391043106,-500.0,9.998e-05,2]
[348207222,1736391043115,-500.0,9.998e-05,2]
[348207224,1736391043124,-502.21587983,9.998e-05,2]
[348207226,1736391043133,-508.2020603,9.998e-05,2]
[348207228,1736391043142,-500.0,9.998e-05,2]
[348207230,1736391043151,-500.0,9.998e-05,2]
[348207231,1736391043160,-652.67,9.998e-05,2]
[348207233,1736391043170,-500.0,9.998e-05,2]
[348207235,1736391043179,-500.0,9.998e-05,2]
[348207237,1736391043188,-500.0,9.998e-05,2]
[348207239,1736391043197,-500.0,9.998e-05,2]
[348207241,1736391043207,-590.79,9.998e-05,2]
[348207242,1736391043217,-500.0,9.998e-05,2]
[348207244,1736391043226,-500.0,9.998e-05,2]
[348207246,1736391043235,-500.0,9.998e-05,2]
[348207248,1736391043244,-500.0,9.998e-05,2]
[348207250,1736391043254,-220.96224845,9.998e-05,2]
[348207252,1736391043264,-500.0,9.998e-05,2]
[348207254,1736391043273,-500.0,9.998e-05,2]
[348207256,1736391043283,-500.0,9.998e-05,2]
[348207257,1736391043292,-502.83631306,9.998e-05,2]
[348207259,1736391043301,-500.0,9.998e-05,2]
[348207261,1736391043310,-503.46963081,9.998e-05,2]
[348207263,1736391043319,-502.11329343,9.998e-05,2]
[348207265,1736391043329,-500.0,9.998e-05,2]
[348207267,1736391043338,-500.0,9.998e-05,2]
[348207269,1736391043348,-500.0,9.998e-05,2]
[348207271,1736391043357,-500.0,9.998e-05,2]
[348207273,1736391043366,-500.0,9.998e-05,2]
[348207274,1736391043375,-501.90213283,9.998e-05,2]
[348207276,1736391043384,-500.0,9.998e-05,2]
[348207278,1736391043393,-500.0,9.998e-05,2]
[348207280,1736391043403,-500.0,9.998e-05,2]
[348207282,1736391043412,-662.49,9.998e-05,2]
[348207284,1736391043421,-500.0,9.998e-05,2]
[348207286,1736391043430,-500.0,9.998e-05,2]
[348207288,1736391043440,-500.0,9.998e-05,2]
[348207290,1736391043448,-500.0,9.998e-05,2]
[348207291,1736391043457,-500.0,9.998e-05,2]
[348207293,1736391043466,-505.27377076,9.998e-05,2]
[348207295,1736391043476,-500.0,9.998e-05,2]
[348207297,1736391043485,-500.0,9.998e-05,2]
[348207299,1736391043494,-500.0,9.998e-05,2]
[348207301,1736391043503,-500.0,9.998e-05,2]
[348207302,1736391043512,-500.0,9.998e-05,2]
[348207304,1736391043522,-500.0,9.998e-05,2]
[348207306,1736391043531,-500.0,9.998e-05,2]
[348207308,1736391043540,-500.0,9.998e-05,2]
[348207310,1736391043550,-500.0,9.998e-05,2]
[348207312,1736391043559,-500.0,9.998e-05,2]
[348207314,1736391043568,-500.0,9.998e-05,2]
[348207315,1736391043577,-500.0,9.998e-05,2]
[348207317,1736391043586,-500.0,9.998e-05,2]
[348207319,1736391043596,-505.54270439,9.998e-05,2]
[348207321,1736391043606,-500.0,9.998e-05,2]
[348207323,1736391043615,-500.0,9.998e-05,2]
[348207325,1736391043624,-502.18074997,9.998e-05,2]
[348207327,1736391043635,-1033.89375969,9.998e-05,2]
[348207328,1736391043645,-500.0,9.998e-05,2]
[348207330,1736391043655,-500.0,9.998e-05,2]
[348207332,1736391043664,-500.0,9.998e-05,2]
[348207334,1736391043674,-511.77826524,9.998e-05,2]
[348207336,1736391043683,-500.0,9.998e-05,2]
[348207338,1736391043692,-520.15880234,9.998e-05,2]
[348207340,1736391043701,-500.0,9.998e-05,2]
[348207342,1736391043711,-500.0,9.998e-05,2]
[348207343,1736391043721,-402.60049348,9.998e-05,2]
[348207345,1736391043730,-500.0,9.998e-05,2]
[348207347,1736391043739,-284.18561917,9.998e-05,2]
[348207349,1736391043748,-500.0,9.998e-05,2]
[348207351,1736391043758,-500.0,9.998e-05,2]
[348207352,1736391043768,-465.2087797,9.998e-05,2]
[348207353,1736391043777,-523.68883317,9.998e-05,2]
[348207354,1736391043787,-500.0,9.998e-05,2]
[348207355,1736391043796,-500.0,9.998e-05,2]
[348207356,1736391043805,-555.3014654,9.998e-05,2]
[348207357,1736391043816,-579.81167822,9.998e-05,2]
[348207358,1736391043825,-504.50940732,9.998e-05,2]
[348207359,1736391043835,-500.0,9.998e-05,2]
[348207360,1736391043845,-500.0,9.998e-05,2]
[348207361,1736391043855,-500.0,9.998e-05,2]
[348207362,1736391043864,-500.0,9.998e-05,2]
[348207364,1736391043874,-500.0,9.998e-05,2]
[348207365,1736391043884,-505.49551626,9.998e-05,2]
[348207367,1736391043897,-630.31,9.998e-05,2]
[348207369,1736391043906,-500.0,9.998e-05,2]
[348207371,1736391043915,-1257.26,9.998e-05,2]
[348207373,1736391043924,-500.0,9.998e-05,2]
[348207375,1736391043934,-500.0,9.998e-05,2]
[348207377,1736391043944,-500.0,9.998e-05,2]
[348207379,1736391043953,-500.0,9.998e-05,2]
[348207381,1736391043963,-500.0,9.998e-05,2]
[348207383,1736391043972,-520.27946142,9.998e-05,2]
[348207385,1736391043982,-503.99151265,9.998e-05,2]
[348207387,1736391043991,-510.68848345,9.998e-05,2]
[348207389,1736391044000,-500.0,9.998e-05,2]
[348207391,1736391044010,-490.0,9.998e-05,2]
[348207393,1736391044020,-560.65081062,9.998e-05,2]
[348207395,1736391044029,-331.79585934,9.998e-05,2]
[348207397,1736391044038,-500.0,9.998e-05,2]
[348207399,1736391044048,-500.0,9.998e-05,2]
[348207401,1736391044057,-507.6299088,9.998e-05,2]
[348207403,1736391044068,-500.0,9.998e-05,2]
[348207405,1736391044078,-500.0,9.998e-05,2]
[348207407,1736391044087,-500.0,9.998e-05,2]
[348207409,1736391044098,-500.0,9.998e-05,2]
[348207411,1736391044107,-500.0,9.998e-05,2]
[348207413,1736391044116,-500.0,9.998e-05,2]
[348207415,1736391044125,-500.0,9.998e-05,2]
[348207417,1736391044135,-504.84551596,9.998e-05,2]
[348207419,1736391044144,-1849.27,9.998e-05,2]
[348207421,1736391044153,-1050.41001152,9.999e-05,3]
[348207423,1736391044163,-949.08,9.999e-05,2]
[348207425,1736391044171,-500.0,9.999e-05,2]
[348207427,1736391044181,-596.23,9.999e-05,2]
[348207429,1736391044190,-779.79,9.999e-05,2]
[348207431,1736391044199,-1022.27,9.999e-05,2]
[348207433,1736391044208,-531.79,9.999e-05,2]
[348207435,1736391044218,-798.09,9.999e-05,2]
[348207437,1736391044227,-1283.9,9.999e-05,2]
[348207439,1736391044236,-1872.27,9.999e-05,2]
[348207441,1736391044245,-856.53,9.999e-05,2]
[348207443,1736391044255,-1309.76,9.999e-05,2]
[348207445,1736391044264,-917.15,9.999e-05,2]